[Event "*** Titled Tuesday 3|2 Blitz"]
[Site "Chess.com"]
[Date "2016.10.04"]
[Round "1"]
[White "NTBT_DHS"]
[Black "FLchessplayer"]
[Result "1-0"]
[WhiteElo "2454"]
[BlackElo "2021"]
[TimeControl "180+2"]
[EndTime "17:03:29 PDT"]
[Termination "NTBT_DHS won by resignation"]

1. d4 {[%clk 0:03:01.9]} 1... Nf6 {[%clk 0:02:58.2]} 2. c4 {[%clk 0:03:03.3]}
2... c5 {[%clk 0:02:58.7]} 3. d5 {[%clk 0:03:03.2]} 3... d6 {[%clk 0:03:00]} 4.
Nc3 {[%clk 0:03:02]} 4... g6 {[%clk 0:03:01.1]} 5. g3 {[%clk 0:03:01.9]} 5...
Bg7 {[%clk 0:03:01.8]} 6. Bg2 {[%clk 0:03:03.5]} 6... O-O {[%clk 0:03:02.8]} 7.
Nf3 {[%clk 0:03:05.2]} 7... e5 {[%clk 0:03:02.9]} 8. e4 {[%clk 0:03:03.2]} 8...
Na6 {[%clk 0:03:00.4]} 9. O-O {[%clk 0:03:03.3]} 9... Nc7 {[%clk 0:03:01.4]} 10.
Ne1 {[%clk 0:03:03.9]} 10... Rb8 {[%clk 0:03:00.7]} 11. a4 {[%clk 0:03:04.9]}
11... b6 {[%clk 0:03:01.3]} 12. Nd3 {[%clk 0:03:05.1]} 12... a6 {[%clk
0:03:02.5]} 13. f4 {[%clk 0:02:55.7]} 13... exf4 {[%clk 0:03:02.3]} 14. e5
{[%clk 0:02:45.2]} 14... dxe5 {[%clk 0:03:01]} 15. Nxe5 {[%clk 0:02:46.4]} 15...
fxg3 {[%clk 0:02:35.4]} 16. Nc6 {[%clk 0:02:45.4]} 16... gxh2+ {[%clk
0:02:33.7]} 17. Kh1 {[%clk 0:02:46.4]} 17... Qe8 {[%clk 0:02:29.2]} 18. Re1
{[%clk 0:02:44.5]} 18... Qd7 {[%clk 0:02:27.8]} 19. Nxb8 {[%clk 0:02:44]} 19...
Qf5 {[%clk 0:02:28.4]} 20. Qf3 {[%clk 0:02:40.1]} 20... Ng4 {[%clk 0:02:22.7]}
21. Qxf5 {[%clk 0:02:38.3]} 21... Bxf5 {[%clk 0:02:23.7]} 22. Nc6 {[%clk
0:02:38.2]} 22... h5 {[%clk 0:02:18.7]} 23. Bf4 {[%clk 0:02:38.6]} 23... Ne8
{[%clk 0:02:16.3]} 24. Ne7+ {[%clk 0:02:39.8]} 24... Kh7 {[%clk 0:02:16.7]} 25.
Nxf5 {[%clk 0:02:41]} 25... gxf5 {[%clk 0:02:18.4]} 26. Bf3 {[%clk 0:02:39]}
26... Nef6 {[%clk 0:02:18.3]} 27. Re2 {[%clk 0:02:37.2]} 27... Rb8 {[%clk
0:02:11.2]} 28. Bxb8 {[%clk 0:02:37.3]} 1-0

[Event "*** Titled Tuesday 3|2 Blitz"]
[Site "Chess.com"]
[Date "2016.10.04"]
[Round "1"]
[White "BillieKimbah"]
[Black "Quiet_Desperation"]
[Result "1-0"]
[WhiteElo "2519"]
[BlackElo "2231"]
[TimeControl "180+2"]
[EndTime "17:04:05 PDT"]
[Termination "BillieKimbah won by resignation"]

1. d4 {[%clk 0:02:55.7]} 1... Nf6 {[%clk 0:02:58.5]} 2. Bf4 {[%clk 0:02:55]}
2... e6 {[%clk 0:02:56.1]} 3. e3 {[%clk 0:02:54.2]} 3... b6 {[%clk 0:02:57.2]}
4. Nf3 {[%clk 0:02:54.2]} 4... Bb7 {[%clk 0:02:58.5]} 5. h3 {[%clk 0:02:54.9]}
5... Be7 {[%clk 0:02:58.1]} 6. Bd3 {[%clk 0:02:55.2]} 6... O-O {[%clk
0:02:58.1]} 7. O-O {[%clk 0:02:55.4]} 7... c5 {[%clk 0:02:58.9]} 8. c3 {[%clk
0:02:56.2]} 8... cxd4 {[%clk 0:02:59.7]} 9. cxd4 {[%clk 0:02:56.8]} 9... d6
{[%clk 0:03:01.2]} 10. Nc3 {[%clk 0:02:57.1]} 10... Nbd7 {[%clk 0:03:01.7]} 11.
e4 {[%clk 0:02:50]} 11... a6 {[%clk 0:02:58.7]} 12. Qe2 {[%clk 0:02:47.6]} 12...
Re8 {[%clk 0:02:48.5]} 13. Bh2 {[%clk 0:02:36.4]} 13... Nf8 {[%clk 0:02:44.4]}
14. Rac1 {[%clk 0:02:33.7]} 14... Ng6 {[%clk 0:02:32.1]} 15. a4 {[%clk
0:02:26.4]} 15... Nh5 {[%clk 0:02:28.9]} 16. Qd2 {[%clk 0:02:23.6]} 16... h6
{[%clk 0:02:23.8]} 17. Rfe1 {[%clk 0:02:23]} 17... Bg5 {[%clk 0:02:11.9]} 18.
Nxg5 {[%clk 0:02:23.2]} 18... hxg5 {[%clk 0:02:11.9]} 19. Bf1 {[%clk 0:02:21.6]}
19... f5 {[%clk 0:01:53.9]} 20. exf5 {[%clk 0:02:20.2]} 20... exf5 {[%clk
0:01:54.8]} 21. Rxe8+ {[%clk 0:02:20.7]} 21... Qxe8 {[%clk 0:01:56.1]} 22. Qxg5
{[%clk 0:02:21.9]} 22... Nf6 {[%clk 0:01:48.1]} 23. Qxf5 {[%clk 0:02:17.3]}
23... Ne4 {[%clk 0:01:48.1]} 24. Nxe4 {[%clk 0:02:16.3]} 24... Bxe4 {[%clk
0:01:45.1]} 25. Bc4+ {[%clk 0:02:11.5]} 1-0

[Event "*** Titled Tuesday 3|2 Blitz"]
[Site "Chess.com"]
[Date "2016.10.04"]
[Round "1"]
[White "jk13"]
[Black "3f32"]
[Result "1-0"]
[WhiteElo "2527"]
[BlackElo "2237"]
[TimeControl "180+2"]
[EndTime "17:05:03 PDT"]
[Termination "jk13 won by resignation"]

1. d4 {[%clk 0:03:01.4]} 1... Nf6 {[%clk 0:02:57.9]} 2. Bf4 {[%clk 0:03:02.4]}
2... e6 {[%clk 0:02:55.8]} 3. Nc3 {[%clk 0:03:02.9]} 3... d5 {[%clk 0:02:56.2]}
4. e3 {[%clk 0:03:02.5]} 4... a6 {[%clk 0:02:54.7]} 5. Nf3 {[%clk 0:03:02.7]}
5... c5 {[%clk 0:02:55.9]} 6. Ne5 {[%clk 0:03:03.4]} 6... Nbd7 {[%clk
0:02:54.4]} 7. Qd2 {[%clk 0:03:03.5]} 7... Nxe5 {[%clk 0:02:53.7]} 8. Bxe5
{[%clk 0:03:03.6]} 8... Bd6 {[%clk 0:02:52.8]} 9. O-O-O {[%clk 0:03:01.4]} 9...
Bxe5 {[%clk 0:02:52.9]} 10. dxe5 {[%clk 0:03:03.3]} 10... Nd7 {[%clk 0:02:53.9]}
11. f4 {[%clk 0:03:03.8]} 11... O-O {[%clk 0:02:53.7]} 12. e4 {[%clk 0:03:03.8]}
12... d4 {[%clk 0:02:52.4]} 13. Ne2 {[%clk 0:03:05.3]} 13... b5 {[%clk
0:02:51.7]} 14. Ng3 {[%clk 0:03:05.4]} 14... b4 {[%clk 0:02:50.1]} 15. h4 {[%clk
0:02:59.1]} 15... a5 {[%clk 0:02:50.9]} 16. h5 {[%clk 0:03:00.2]} 16... a4
{[%clk 0:02:51.2]} 17. h6 {[%clk 0:02:59.4]} 17... g6 {[%clk 0:02:51]} 18. Bb5
{[%clk 0:02:59.2]} 18... b3 {[%clk 0:02:50.3]} 19. a3 {[%clk 0:02:55.1]} 19...
bxc2 {[%clk 0:02:50.3]} 20. Qxc2 {[%clk 0:02:57]} 20... Qb6 {[%clk 0:02:41.2]}
21. Bc4 {[%clk 0:02:55.1]} 21... Ba6 {[%clk 0:02:39.7]} 22. Rd2 {[%clk
0:02:49.6]} 22... Rfb8 {[%clk 0:02:33.9]} 23. Nf1 {[%clk 0:02:40.8]} 23... Qa5
{[%clk 0:02:24.5]} 24. Bxa6 {[%clk 0:02:34.3]} 24... Rxa6 {[%clk 0:02:26.4]} 25.
Rh3 {[%clk 0:02:28.7]} 25... Nf8 {[%clk 0:02:20]} 26. Qc4 {[%clk 0:02:19.1]}
26... Rab6 {[%clk 0:02:18.6]} 27. g4 {[%clk 0:02:10.3]} 27... Nd7 {[%clk
0:01:42.1]} 28. Rhh2 {[%clk 0:02:06.1]} 28... Rb3 {[%clk 0:01:42]} 29. Qe2
{[%clk 0:01:56.7]} 29... Re3 {[%clk 0:01:42]} 30. Nxe3 {[%clk 0:01:56.6]} 30...
dxe3 {[%clk 0:01:38.2]} 31. Rxd7 {[%clk 0:01:56.4]} 1-0

[Event "*** Titled Tuesday 3|2 Blitz"]
[Site "Chess.com"]
[Date "2016.10.04"]
[Round "1"]
[White "Opening_Prep"]
[Black "Ar4uha"]
[Result "0-1"]
[WhiteElo "2132"]
[BlackElo "2480"]
[TimeControl "180+2"]
[EndTime "17:05:17 PDT"]
[Termination "Ar4uha won by resignation"]

1. d4 {[%clk 0:03:02]} 1... Nf6 {[%clk 0:03:00.8]} 2. c4 {[%clk 0:03:01.6]} 2...
e6 {[%clk 0:03:02.2]} 3. g3 {[%clk 0:03:00.9]} 3... d5 {[%clk 0:03:02.9]} 4. Nf3
{[%clk 0:03:01.1]} 4... dxc4 {[%clk 0:03:03.6]} 5. Bg2 {[%clk 0:03:01.7]} 5...
Nbd7 {[%clk 0:03:05.2]} 6. O-O {[%clk 0:03:02.4]} 6... Be7 {[%clk 0:03:04.8]} 7.
Qa4 {[%clk 0:02:49.9]} 7... a6 {[%clk 0:03:05.6]} 8. Qxc4 {[%clk 0:02:32.4]}
8... b5 {[%clk 0:03:06.5]} 9. Qc2 {[%clk 0:02:20]} 9... Bb7 {[%clk 0:03:07.5]}
10. Rd1 {[%clk 0:01:48.4]} 10... O-O {[%clk 0:03:07.7]} 11. a4 {[%clk
0:01:16.5]} 11... c5 {[%clk 0:03:08.5]} 12. dxc5 {[%clk 0:01:14.1]} 12... Bxc5
{[%clk 0:03:08.5]} 13. Bg5 {[%clk 0:01:10.7]} 13... Qb6 {[%clk 0:03:04.9]} 14.
e3 {[%clk 0:01:05.1]} 14... h6 {[%clk 0:03:03.1]} 15. Bxf6 {[%clk 0:00:55.6]}
15... Nxf6 {[%clk 0:03:05]} 16. Nc3 {[%clk 0:00:50.2]} 16... Rac8 {[%clk
0:03:01.8]} 17. axb5 {[%clk 0:00:50.2]} 17... axb5 {[%clk 0:03:03.7]} 18. Qb3
{[%clk 0:00:51.2]} 18... Bxe3 {[%clk 0:02:54.8]} 19. Qxb5 {[%clk 0:00:38.5]}
19... Bxf2+ {[%clk 0:02:55.9]} 20. Kf1 {[%clk 0:00:40]} 20... Ng4 {[%clk
0:02:55.7]} 21. Qxb6 {[%clk 0:00:40.3]} 21... Bxb6 {[%clk 0:02:57.6]} 22. Ke2
{[%clk 0:00:41.2]} 22... Ne3 {[%clk 0:02:52.8]} 23. Rd7 {[%clk 0:00:42.1]} 23...
Bc6 {[%clk 0:02:49.5]} 24. Rd6 {[%clk 0:00:31.8]} 24... Nxg2 {[%clk 0:02:47.3]}
25. Ra6 {[%clk 0:00:32.4]} 25... Bxf3+ {[%clk 0:02:31.6]} 26. Kxf3 {[%clk
0:00:32.5]} 26... Bc5 {[%clk 0:02:33.3]} 27. Kxg2 {[%clk 0:00:20]} 27... Bxd6
{[%clk 0:02:33.6]} 28. Rxd6 {[%clk 0:00:21.9]} 28... Rfd8 {[%clk 0:02:34.5]} 0-1

[Event "*** Titled Tuesday 3|2 Blitz"]
[Site "Chess.com"]
[Date "2016.10.04"]
[Round "1"]
[White "iturrizaga"]
[Black "spirals5"]
[Result "1-0"]
[WhiteElo "2572"]
[BlackElo "2269"]
[TimeControl "180+2"]
[EndTime "17:06:25 PDT"]
[Termination "iturrizaga won by resignation"]

1. Nf3 {[%clk 0:03:01.5]} 1... d5 {[%clk 0:03:00.6]} 2. c4 {[%clk 0:03:03]} 2...
e6 {[%clk 0:03:01.2]} 3. g3 {[%clk 0:03:04.1]} 3... Nf6 {[%clk 0:03:01.9]} 4.
Bg2 {[%clk 0:03:05.4]} 4... c5 {[%clk 0:03:02.8]} 5. cxd5 {[%clk 0:03:06]} 5...
exd5 {[%clk 0:03:03.2]} 6. d4 {[%clk 0:03:07.3]} 6... c4 {[%clk 0:03:04.1]} 7.
O-O {[%clk 0:03:08.5]} 7... h6 {[%clk 0:03:04.7]} 8. b3 {[%clk 0:03:10]} 8...
cxb3 {[%clk 0:03:04.6]} 9. Qxb3 {[%clk 0:03:10.2]} 9... Be7 {[%clk 0:03:05.2]}
10. Nc3 {[%clk 0:03:11.8]} 10... O-O {[%clk 0:03:05.5]} 11. Ba3 {[%clk
0:03:13.1]} 11... Nc6 {[%clk 0:02:56.1]} 12. e3 {[%clk 0:03:13.5]} 12... Bxa3
{[%clk 0:02:55.2]} 13. Qxa3 {[%clk 0:03:12.7]} 13... Re8 {[%clk 0:02:56.2]} 14.
Rfc1 {[%clk 0:03:12.3]} 14... Bf5 {[%clk 0:02:51.1]} 15. Qb3 {[%clk 0:03:10.4]}
15... Qd7 {[%clk 0:02:44.4]} 16. Na4 {[%clk 0:03:08.8]} 16... b6 {[%clk
0:02:44.2]} 17. Nb2 {[%clk 0:02:56.7]} 17... Rac8 {[%clk 0:02:41.2]} 18. Nd3
{[%clk 0:02:54.5]} 18... Bxd3 {[%clk 0:02:39.8]} 19. Qxd3 {[%clk 0:02:54.9]}
19... Ne4 {[%clk 0:02:38.3]} 20. Qb5 {[%clk 0:02:52]} 20... Ne5 {[%clk
0:02:33.3]} 21. Qxd7 {[%clk 0:02:30.8]} 21... Nxd7 {[%clk 0:02:33.5]} 22. Bh3
{[%clk 0:02:32.1]} 22... Rxc1+ {[%clk 0:02:32.3]} 23. Rxc1 {[%clk 0:02:31.9]}
23... Ndf6 {[%clk 0:02:33.2]} 24. Rc7 {[%clk 0:02:30.7]} 24... a5 {[%clk
0:02:26.8]} 25. Ne5 {[%clk 0:02:30.7]} 25... Rf8 {[%clk 0:02:23.4]} 26. Rb7
{[%clk 0:02:29.5]} 26... g5 {[%clk 0:02:09.4]} 27. Rxb6 {[%clk 0:02:24.2]} 27...
Kg7 {[%clk 0:02:05.5]} 28. Rb7 {[%clk 0:02:15.3]} 28... h5 {[%clk 0:01:54.5]}
29. Ra7 {[%clk 0:02:01.8]} 29... g4 {[%clk 0:01:54.6]} 30. Bg2 {[%clk
0:02:01.2]} 30... Nc3 {[%clk 0:01:50.6]} 31. Rxa5 {[%clk 0:01:49]} 31... Nfe4
{[%clk 0:01:47.9]} 32. Ra7 {[%clk 0:01:45.4]} 32... Rb8 {[%clk 0:01:33.9]} 33.
Rxf7+ {[%clk 0:01:43.8]} 33... Kg8 {[%clk 0:01:33]} 34. Bxe4 {[%clk 0:01:42.7]}
34... Nxe4 {[%clk 0:01:31.5]} 35. Kg2 {[%clk 0:01:40.3]} 35... Rb2 {[%clk
0:01:28.7]} 36. a4 {[%clk 0:01:38.8]} 36... Ra2 {[%clk 0:01:29.1]} 37. Rf5
{[%clk 0:01:38]} 37... Rxa4 {[%clk 0:01:25.7]} 38. Nd7 {[%clk 0:01:34]} 38...
Ra2 {[%clk 0:01:18.3]} 39. Nf6+ {[%clk 0:01:32.3]} 39... Nxf6 {[%clk 0:01:13.5]}
40. Rxf6 {[%clk 0:01:34.2]} 1-0

[Event "*** Titled Tuesday 3|2 Blitz"]
[Site "Chess.com"]
[Date "2016.10.04"]
[Round "1"]
[White "minnesotachessmaster"]
[Black "lionheart95"]
[Result "0-1"]
[WhiteElo "1892"]
[BlackElo "2415"]
[TimeControl "180+2"]
[EndTime "17:06:52 PDT"]
[Termination "lionheart95 won by resignation"]

1. e4 {[%clk 0:02:54.4]} 1... e6 {[%clk 0:02:59.1]} 2. d4 {[%clk 0:02:53.7]}
2... d5 {[%clk 0:03:00]} 3. Nc3 {[%clk 0:02:52.4]} 3... Nf6 {[%clk 0:03:00]} 4.
Bg5 {[%clk 0:02:50.5]} 4... Be7 {[%clk 0:02:59.8]} 5. e5 {[%clk 0:02:49.6]} 5...
Nfd7 {[%clk 0:03:00.8]} 6. Bxe7 {[%clk 0:02:49.6]} 6... Qxe7 {[%clk 0:03:02.1]}
7. Qg4 {[%clk 0:02:49.8]} 7... O-O {[%clk 0:02:54.7]} 8. O-O-O {[%clk 0:02:40]}
8... c5 {[%clk 0:02:51.7]} 9. f4 {[%clk 0:01:58.3]} 9... cxd4 {[%clk 0:02:51.5]}
10. Nb5 {[%clk 0:01:58.9]} 10... Nc6 {[%clk 0:02:48.4]} 11. Nf3 {[%clk
0:01:57.2]} 11... f5 {[%clk 0:02:47.4]} 12. Qh3 {[%clk 0:01:53.9]} 12... Nc5
{[%clk 0:02:46.2]} 13. Nbxd4 {[%clk 0:01:51.7]} 13... Ne4 {[%clk 0:02:46]} 14.
Ng5 {[%clk 0:01:27.7]} 14... Nxg5 {[%clk 0:02:42.6]} 15. fxg5 {[%clk 0:01:28]}
15... Qxg5+ {[%clk 0:02:43.6]} 16. Kb1 {[%clk 0:01:28.6]} 16... Nxe5 {[%clk
0:02:34.9]} 17. Be2 {[%clk 0:01:26.3]} 17... Ng6 {[%clk 0:02:35.3]} 18. Qb3
{[%clk 0:01:19.3]} 18... Qd8 {[%clk 0:02:23.3]} 19. h4 {[%clk 0:01:18.4]} 19...
Qb6 {[%clk 0:02:23]} 20. Qg3 {[%clk 0:01:16.5]} 20... f4 {[%clk 0:02:19.5]} 21.
Qg5 {[%clk 0:01:14.4]} 21... Qd8 {[%clk 0:02:18.9]} 22. Bd3 {[%clk 0:00:43.5]}
22... Qxg5 {[%clk 0:02:13.3]} 23. hxg5 {[%clk 0:00:44.7]} 23... e5 {[%clk
0:02:14.5]} 24. Bxg6 {[%clk 0:00:39.6]} 24... hxg6 {[%clk 0:02:13.5]} 25. Nb5
{[%clk 0:00:41.2]} 25... d4 {[%clk 0:02:05.1]} 26. Rh4 {[%clk 0:00:40.1]} 26...
Bf5 {[%clk 0:02:01]} 27. Rdh1 {[%clk 0:00:39.5]} 27... Rad8 {[%clk 0:01:58.6]}
28. Kc1 {[%clk 0:00:34.5]} 28... a6 {[%clk 0:01:57.9]} 29. Na3 {[%clk
0:00:32.1]} 29... b5 {[%clk 0:01:56.6]} 30. c4 {[%clk 0:00:31.7]} 30... b4
{[%clk 0:01:46]} 31. Nb1 {[%clk 0:00:32.4]} 31... Kf7 {[%clk 0:01:45.7]} 32. Nd2
{[%clk 0:00:32]} 32... a5 {[%clk 0:01:43.4]} 33. Nf3 {[%clk 0:00:32.3]} 33...
Rfe8 {[%clk 0:01:43.6]} 34. Re1 {[%clk 0:00:32.6]} 34... e4 {[%clk 0:01:44.1]}
35. Nd2 {[%clk 0:00:31.8]} 35... e3 {[%clk 0:01:43.7]} 36. Nf3 {[%clk 0:00:31]}
36... d3 {[%clk 0:01:43.6]} 0-1

[Event "*** Titled Tuesday 3|2 Blitz"]
[Site "Chess.com"]
[Date "2016.10.04"]
[Round "1"]
[White "Schwarzschidl"]
[Black "Noukii"]
[Result "0-1"]
[WhiteElo "2336"]
[BlackElo "2613"]
[TimeControl "180+2"]
[EndTime "17:07:05 PDT"]
[Termination "Noukii won by resignation"]

1. e4 {[%clk 0:03:01.3]} 1... Nf6 {[%clk 0:03:00.8]} 2. e5 {[%clk 0:03:00.8]}
2... Nd5 {[%clk 0:03:02.3]} 3. c4 {[%clk 0:03:01.4]} 3... Nb6 {[%clk 0:03:02.5]}
4. d4 {[%clk 0:03:01.4]} 4... d6 {[%clk 0:03:03.7]} 5. f4 {[%clk 0:03:00.1]}
5... dxe5 {[%clk 0:03:00.9]} 6. fxe5 {[%clk 0:03:02]} 6... c5 {[%clk 0:03:02.5]}
7. d5 {[%clk 0:03:02.9]} 7... g6 {[%clk 0:03:04.1]} 8. Nc3 {[%clk 0:03:02.1]}
8... Bg7 {[%clk 0:03:05.4]} 9. Bf4 {[%clk 0:03:01]} 9... O-O {[%clk 0:03:07]}
10. Be2 {[%clk 0:03:01.5]} 10... e6 {[%clk 0:03:07.8]} 11. Nf3 {[%clk 0:03:01]}
11... exd5 {[%clk 0:03:05.2]} 12. Nxd5 {[%clk 0:02:50.5]} 12... Nxd5 {[%clk
0:02:40.6]} 13. cxd5 {[%clk 0:02:47.2]} 13... Bg4 {[%clk 0:02:42.1]} 14. Qb3
{[%clk 0:02:36.1]} 14... Qa5+ {[%clk 0:02:33]} 15. Kf2 {[%clk 0:02:23.1]} 15...
Nd7 {[%clk 0:02:26.7]} 16. Rhe1 {[%clk 0:01:16.2]} 16... Rae8 {[%clk 0:02:18.5]}
17. Qxb7 {[%clk 0:00:38.1]} 17... Bxf3 {[%clk 0:01:14.1]} 18. Qxd7 {[%clk
0:00:37.7]} 18... Rd8 {[%clk 0:01:15.2]} 19. Qe7 {[%clk 0:00:26.5]} 19... Rfe8
{[%clk 0:01:09.8]} 20. Qh4 {[%clk 0:00:25.1]} 20... Bxd5 {[%clk 0:01:10.5]} 21.
Rad1 {[%clk 0:00:21.2]} 21... Bxa2 {[%clk 0:01:05.3]} 22. Rxd8 {[%clk 0:00:21]}
22... Rxd8 {[%clk 0:01:07.2]} 23. Rd1 {[%clk 0:00:19.2]} 23... Rxd1 {[%clk
0:01:02.9]} 24. Bxd1 {[%clk 0:00:21.1]} 24... Be6 {[%clk 0:01:02.3]} 25. Qe7
{[%clk 0:00:22]} 25... h6 {[%clk 0:01:03.2]} 26. Be3 {[%clk 0:00:22.1]} 26...
Bxe5 {[%clk 0:00:55.4]} 27. Bxh6 {[%clk 0:00:22.3]} 27... Bd4+ {[%clk
0:00:56.9]} 28. Kf1 {[%clk 0:00:21.4]} 28... Bc4+ {[%clk 0:00:55.6]} 29. Be2
{[%clk 0:00:22.5]} 29... Qa1+ {[%clk 0:00:56.5]} 0-1

[Event "*** Titled Tuesday 3|2 Blitz"]
[Site "Chess.com"]
[Date "2016.10.04"]
[Round "1"]
[White "Iwannabetheguy"]
[Black "elefante33"]
[Result "0-1"]
[WhiteElo "2000"]
[BlackElo "2454"]
[TimeControl "180+2"]
[EndTime "17:07:52 PDT"]
[Termination "elefante33 won by resignation"]

1. e4 {[%clk 0:03:01.6]} 1... c5 {[%clk 0:02:22]} 2. Nf3 {[%clk 0:03:01.8]} 2...
d6 {[%clk 0:02:21.7]} 3. d4 {[%clk 0:03:03.1]} 3... cxd4 {[%clk 0:02:22.9]} 4.
Nxd4 {[%clk 0:03:05]} 4... Nf6 {[%clk 0:02:24.2]} 5. Nc3 {[%clk 0:03:06]} 5...
Nc6 {[%clk 0:02:24.6]} 6. Bc4 {[%clk 0:03:05.8]} 6... e6 {[%clk 0:02:21.4]} 7.
Bb3 {[%clk 0:03:05.3]} 7... Na5 {[%clk 0:02:19]} 8. O-O {[%clk 0:03:04.5]} 8...
Nxb3 {[%clk 0:02:18.8]} 9. axb3 {[%clk 0:03:05.3]} 9... Be7 {[%clk 0:02:19.9]}
10. Kh1 {[%clk 0:03:00.2]} 10... O-O {[%clk 0:02:20.5]} 11. f4 {[%clk
0:03:00.9]} 11... a6 {[%clk 0:02:21.2]} 12. f5 {[%clk 0:03:01.6]} 12... e5
{[%clk 0:02:13.9]} 13. Nde2 {[%clk 0:03:01.8]} 13... b5 {[%clk 0:02:12.7]} 14.
Bg5 {[%clk 0:03:02.3]} 14... Bb7 {[%clk 0:02:12.9]} 15. Bxf6 {[%clk 0:03:01]}
15... Bxf6 {[%clk 0:02:13.8]} 16. Ng3 {[%clk 0:02:59.9]} 16... Rc8 {[%clk
0:02:11.6]} 17. Nh5 {[%clk 0:02:57.3]} 17... Bg5 {[%clk 0:02:09.6]} 18. Rf3
{[%clk 0:02:51.9]} 18... g6 {[%clk 0:01:58.8]} 19. Ng3 {[%clk 0:02:37.1]} 19...
Kg7 {[%clk 0:01:46.5]} 20. fxg6 {[%clk 0:02:31.9]} 20... hxg6 {[%clk 0:01:46.8]}
21. h3 {[%clk 0:02:22.9]} 21... Rh8 {[%clk 0:01:28.7]} 22. Nd5 {[%clk
0:02:21.2]} 22... Rc5 {[%clk 0:01:07.7]} 23. Ne3 {[%clk 0:02:03.1]} 23... Bf4
{[%clk 0:00:58.3]} 24. Ne2 {[%clk 0:02:00.7]} 24... Bxe4 {[%clk 0:00:56.1]} 25.
Nxf4 {[%clk 0:01:52.9]} 25... Bxf3 {[%clk 0:00:53.5]} 26. Qxf3 {[%clk
0:01:52.6]} 26... exf4 {[%clk 0:00:54.4]} 27. Qxf4 {[%clk 0:01:52.7]} 27... Rh4
{[%clk 0:00:48.3]} 28. Qf3 {[%clk 0:01:45.5]} 28... a5 {[%clk 0:00:29]} 29. Rf1
{[%clk 0:01:43.6]} 29... f5 {[%clk 0:00:22.4]} 30. Kh2 {[%clk 0:01:26.9]} 30...
Re4 {[%clk 0:00:22.8]} 31. Ng4 {[%clk 0:01:24.1]} 31... Qe7 {[%clk 0:00:21.6]}
32. Nf2 {[%clk 0:01:24.1]} 32... Re3 {[%clk 0:00:21.5]} 33. Qf4 {[%clk
0:01:23.2]} 33... Rxc2 {[%clk 0:00:21.3]} 34. Rd1 {[%clk 0:01:18.3]} 34... Qe5
{[%clk 0:00:21.7]} 35. Qxe5+ {[%clk 0:01:00.5]} 35... dxe5 {[%clk 0:00:22.9]}
36. Nd3 {[%clk 0:01:01.4]} 36... Ree2 {[%clk 0:00:23.3]} 37. Rg1 {[%clk
0:00:58.1]} 37... Rcd2 {[%clk 0:00:23.4]} 38. Nc1 {[%clk 0:00:58.7]} 38... Re3
{[%clk 0:00:24.4]} 39. Kh1 {[%clk 0:00:56.3]} 39... f4 {[%clk 0:00:25.6]} 40.
Na2 {[%clk 0:00:55.4]} 40... Rxb2 {[%clk 0:00:25.6]} 41. Nc3 {[%clk 0:00:56.9]}
0-1

[Event "*** Titled Tuesday 3|2 Blitz"]
[Site "Chess.com"]
[Date "2016.10.04"]
[Round "1"]
[White "jcibarra"]
[Black "chessking2151"]
[Result "1-0"]
[WhiteElo "2694"]
[BlackElo "2352"]
[TimeControl "180+2"]
[EndTime "17:08:01 PDT"]
[Termination "jcibarra won by resignation"]

1. e4 {[%clk 0:03:01.4]} 1... e5 {[%clk 0:03:00.2]} 2. Nf3 {[%clk 0:03:02.3]}
2... Nc6 {[%clk 0:03:00.7]} 3. Bb5 {[%clk 0:03:03.6]} 3... f5 {[%clk 0:03:01.5]}
4. Nc3 {[%clk 0:03:02.7]} 4... fxe4 {[%clk 0:03:00.3]} 5. Nxe4 {[%clk
0:03:04.6]} 5... Nf6 {[%clk 0:03:00.2]} 6. Bxc6 {[%clk 0:03:05.7]} 6... dxc6
{[%clk 0:02:59.2]} 7. Qe2 {[%clk 0:03:07.2]} 7... Qd5 {[%clk 0:02:33]} 8. Nc3
{[%clk 0:03:02.5]} 8... Qd6 {[%clk 0:02:09.6]} 9. d4 {[%clk 0:02:58]} 9... e4
{[%clk 0:01:55.8]} 10. Nxe4 {[%clk 0:02:56.9]} 10... Nxe4 {[%clk 0:01:56.6]} 11.
Qxe4+ {[%clk 0:02:58.8]} 11... Be7 {[%clk 0:01:58]} 12. Bg5 {[%clk 0:02:57.1]}
12... Be6 {[%clk 0:01:52.7]} 13. Bxe7 {[%clk 0:02:56.2]} 13... Qxe7 {[%clk
0:01:52.4]} 14. O-O-O {[%clk 0:02:54.5]} 14... O-O-O {[%clk 0:01:52.8]} 15. Rhe1
{[%clk 0:02:53.3]} 15... Rde8 {[%clk 0:01:51.8]} 16. Qe3 {[%clk 0:02:42]} 16...
Qd6 {[%clk 0:01:37.7]} 17. d5 {[%clk 0:02:40.3]} 17... Bxd5 {[%clk 0:01:31.6]}
18. Qxe8+ {[%clk 0:02:21.7]} 18... Rxe8 {[%clk 0:01:32]} 19. Rxe8+ {[%clk
0:02:23.6]} 19... Kd7 {[%clk 0:01:33.7]} 20. Re3 {[%clk 0:02:22.8]} 20... b5
{[%clk 0:01:31.6]} 21. g3 {[%clk 0:02:15.5]} 21... Kc8 {[%clk 0:01:24.5]} 22.
Ne5 {[%clk 0:02:14.3]} 22... a5 {[%clk 0:01:20.5]} 23. f4 {[%clk 0:02:12.2]}
23... b4 {[%clk 0:01:20]} 24. c4 {[%clk 0:02:00.9]} 24... Qc5 {[%clk 0:01:16.3]}
25. Re2 {[%clk 0:01:21.3]} 25... Bxc4 {[%clk 0:00:58.3]} 26. Nd7 {[%clk
0:00:42.9]} 26... Qa7 {[%clk 0:00:35.1]} 27. Re8+ {[%clk 0:00:41.7]} 27... Kb7
{[%clk 0:00:35.5]} 28. b3 {[%clk 0:00:38.4]} 28... Bd5 {[%clk 0:00:33.1]} 29.
Rd2 {[%clk 0:00:29.8]} 29... a4 {[%clk 0:00:27.9]} 30. bxa4 {[%clk 0:00:29.5]}
30... Qg1+ {[%clk 0:00:27.2]} 31. Kb2 {[%clk 0:00:30.4]} 31... Qf1 {[%clk
0:00:21.2]} 32. Nc5+ {[%clk 0:00:28.8]} 32... Ka7 {[%clk 0:00:21.8]} 33. a5
{[%clk 0:00:26]} 33... Qc4 {[%clk 0:00:22]} 34. Nb3 {[%clk 0:00:27]} 34... Ka6
{[%clk 0:00:19.9]} 35. Rc2 {[%clk 0:00:26.3]} 35... Qd3 {[%clk 0:00:19.5]} 36.
Nc5+ {[%clk 0:00:27.7]} 1-0